lending/lending_fUSD_20240110
["ID","MTS","AMOUNT","RATE_DAILY","PERIOD"]
[311059289,1704891127970,-1277.67,0.00032328,2]
[311059290,1704891127979,-755.08,0.00032328,2]
[311059291,1704891127988,-1281.13,0.00032328,2]
[311059292,1704891127998,-538.81028104,0.00032328,2]
[311059293,1704891128008,-667.72,0.00032328,2]
[311059294,1704891128017,-1050.74,0.00032328,2]
[311059295,1704891128026,-1129.59,0.00032328,2]
[311059296,1704891128036,-500.0,0.00032328,2]
[311059297,1704891128045,-1299.52,0.00032328,2]
[311059298,1704891128054,-500.0,0.00032328,2]
[311059299,1704891128065,-500.0,0.00032328,2]
[311059300,1704891128075,-500.0,0.00032328,2]
[311059301,1704891128084,-665.14,0.00032328,2]
[311059302,1704891128094,-1462.15,0.00032328,2]
[311059303,1704891128104,-883.1,0.00032328,2]
[311059304,1704891128114,-736.72,0.00032328,2]
[311059305,1704891128124,-932.0,0.00032328,2]
[311059306,1704891128134,-481.31177713,0.00032328,2]
[311059307,1704891128144,-933.85,0.00032328,2]
[311059308,1704891128158,-715.55,0.00032328,2]
[311059309,1704891128168,-1106.31,0.00032328,2]
[311059310,1704891128178,-500.0,0.00032328,2]
[311059311,1704891128188,-500.0,0.00032328,2]
[311059312,1704891128198,-616.84,0.00032328,2]
[311059313,1704891128208,-989.02,0.00032328,2]
[311059314,1704891128218,-500.0,0.00032328,2]
[311059315,1704891128228,-500.0,0.00032328,2]
[311059316,1704891128237,-1108.12,0.00032328,2]
[311059317,1704891128248,-1195.8,0.00032328,2]
[311059318,1704891128258,-1806.82,0.00032328,2]
[311059319,1704891128269,-915.35,0.00032328,2]
[311059320,1704891128279,-1387.71,0.00032328,2]
[311059321,1704891128289,-1503.57,0.00032328,2]
[311059322,1704891128298,-556.89,0.00032328,2]
[311059323,1704891128307,-728.24,0.00032328,2]
[311059324,1704891128319,-1262.12,0.00032328,2]
[311059325,1704891128332,-749.59,0.00032328,2]
[311059326,1704891128342,-500.0,0.00032328,2]
[311059327,1704891128353,-500.0,0.00032328,2]
[311059328,1704891128363,-968.99,0.00032328,2]
[311059329,1704891128373,-1148.53,0.00032328,2]
[311059330,1704891128383,-500.0,0.00032328,2]
[311059331,1704891128393,-1486.97,0.00032328,2]
[311059332,1704891128407,-1273.18,0.00032328,2]
[311059333,1704891128417,-500.0,0.00032328,2]
[311059334,1704891128427,-500.0,0.00032328,2]
[311059335,1704891128438,-1334.19,0.00032328,2]
[311059336,1704891128448,-810.04,0.00032328,2]
[311059337,1704891128458,-884.9,0.00032328,2]
[311059338,1704891128468,-945.46,0.00032328,2]
[311059339,1704891128478,-500.0,0.00032328,2]
[311059340,1704891128489,-566.84,0.00032328,2]
[311059341,1704891128499,-500.0,0.00032328,2]
[311059342,1704891128510,-500.0,0.00032328,2]
[311059343,1704891128520,-659.65,0.00032328,2]
[311059344,1704891128531,-1698.48,0.00032328,2]
[311059345,1704891128541,-1658.69,0.00032328,2]
[311059346,1704891128550,-1894.62,0.00032328,2]
[311059347,1704891128560,-530.43,0.00032328,2]
[311059348,1704891128574,-648.28,0.00032328,2]
[311059349,1704891128585,-635.25,0.00032328,2]
[311059350,1704891128595,-716.26,0.00032328,2]
[311059351,1704891128605,-500.0,0.00032328,2]
[311059352,1704891128615,-659.2,0.00032328,2]
[311059353,1704891128625,-1075.0,0.00032328,2]
[311059354,1704891128636,-912.69,0.00032328,2]
[311059355,1704891128645,-500.0,0.00032328,2]
[311059356,1704891128658,-500.0,0.00032328,2]
[311059357,1704891128668,-500.0,0.00032328,2]
[311059358,1704891128679,-994.89,0.00032328,2]
[311059359,1704891128688,-536.25,0.00032328,2]
[311059360,1704891128698,-500.0,0.00032328,2]
[311059361,1704891128708,-535.04,0.00032328,2]
[311059362,1704891128718,-763.92,0.00032328,2]
[311059363,1704891128728,-1507.5,0.00032328,2]
[311059364,1704891128738,-1352.86,0.00032328,2]
[311059365,1704891128748,-500.0,0.00032328,2]
[311059366,1704891128758,-763.85,0.00032328,2]
[311059367,1704891128767,-500.0,0.00032328,2]
[311059368,1704891128777,-1058.85,0.00032328,2]
[311059369,1704891128786,-592.06,0.00032328,2]
[311059370,1704891128796,-1144.7,0.00032328,2]
[311059371,1704891128806,-500.0,0.00032328,2]
[311059372,1704891128816,-982.41,0.00032328,2]
[311059373,1704891128825,-500.0,0.00032328,2]
[311059374,1704891128835,-500.0,0.00032328,2]
[311059375,1704891128845,-500.0,0.00032328,2]
[311059376,1704891128855,-960.45,0.00032328,2]
[311059377,1704891128865,-500.0,0.00032328,2]
[311059378,1704891128875,-1268.39,0.00032328,2]
[311059379,1704891128886,-1176.82,0.00032328,2]
[311059380,1704891128896,-500.0,0.00032328,2]
[311059381,1704891128909,-1187.57,0.00032328,2]
[311059382,1704891128919,-1591.28,0.00032328,2]
[311059383,1704891128929,-500.0,0.00032328,2]
[311059384,1704891128938,-982.23,0.00032328,2]
[311059385,1704891128948,-960.81,0.00032328,2]
[311059386,1704891128958,-500.0,0.00032328,2]
[311059387,1704891128968,-1435.01,0.00032328,2]
[311059388,1704891128978,-1012.64,0.00032328,2]
[311059389,1704891128988,-1207.08,0.00032328,2]
[311059390,1704891128998,-771.19,0.00032328,2]
[311059391,1704891129008,-1395.58,0.00032328,2]
[311059392,1704891129018,-1128.18,0.00032328,2]
[311059393,1704891129028,-1055.12,0.00032328,2]
[311059394,1704891129038,-524.56,0.00032328,2]
[311059395,1704891129048,-500.0,0.00032328,2]
[311059396,1704891129058,-620.01,0.00032328,2]
[311059397,1704891129069,-1511.92,0.00032328,2]
[311059398,1704891129079,-835.1,0.00032328,2]
[311059399,1704891129089,-1179.08,0.00032328,2]
[311059400,1704891129099,-1185.27,0.00032328,2]
[311059401,1704891129109,-1387.63,0.00032328,2]
[311059402,1704891129120,-904.42,0.00032328,2]
[311059403,1704891129130,-500.0,0.00032328,2]
[311059404,1704891129141,-1196.53,0.00032328,2]
[311059405,1704891129153,-525.95,0.00032328,2]
[311059406,1704891129163,-1787.03,0.00032328,2]
[311059407,1704891129173,-674.1,0.00032328,2]
[311059408,1704891129183,-1077.63,0.00032328,2]
[311059409,1704891129193,-755.38,0.00032328,2]
[311059410,1704891129203,-500.0,0.00032328,2]
[311059411,1704891129213,-581.62,0.00032328,2]
[311059412,1704891129223,-1257.2,0.00032328,2]
[311059413,1704891129233,-1024.85,0.00032328,2]
[311059414,1704891129244,-500.0,0.00032328,2]
[311059415,1704891129254,-836.69,0.00032328,2]
[311059416,1704891129264,-500.0,0.00032328,2]
[311059417,1704891129274,-525.09,0.00032328,2]
[311059418,1704891129284,-500.0,0.00032328,2]
[311059419,1704891129294,-782.38,0.00032328,2]
[311059420,1704891129303,-1749.35,0.00032328,2]
[311059421,1704891129314,-1000.33,0.00032328,2]
[311059422,1704891129326,-604.42,0.00032328,2]
[311059423,1704891129336,-500.0,0.00032328,2]
[311059424,1704891129346,-500.0,0.00032328,2]
[311059425,1704891129356,-765.38,0.00032328,2]
[311059426,1704891129365,-878.75,0.00032328,2]
[311059427,1704891129375,-679.72,0.00032328,2]
[311059428,1704891129385,-1881.36,0.00032328,2]
[311059429,1704891129395,-500.0,0.00032328,2]
[311059430,1704891129406,-500.0,0.00032328,2]
[311059431,1704891129416,-631.79,0.00032328,2]
[311059432,1704891129425,-500.0,0.00032328,7]
[311059433,1704891129435,-500.0,0.00032328,2]
[311059434,1704891129445,-500.0,0.00032328,2]
[311059435,1704891129455,-1166.65,0.00032328,2]
[311059436,1704891129466,-756.6,0.00032328,2]
[311059437,1704891129476,-2844.34,0.00032328,2]
[311059438,1704891129486,-641.96,0.00032328,2]
[311059439,1704891129495,-500.0,0.00032328,2]
[311059440,1704891129505,-1044.01,0.00032328,2]
[311059441,1704891129515,-367.14829251,0.00032328,2]
[311059442,1704891129525,-500.0,0.00032328,2]
[311059443,1704891129535,-500.0,0.00032328,2]
[311059444,1704891129545,-1332.76,0.00032328,2]
[311059445,1704891129555,-1244.23,0.00032328,2]
[311059446,1704891129566,-729.63,0.00032328,2]
[311059447,1704891129576,-500.0,0.00032328,2]
[311059448,1704891129586,-757.76,0.00032328,2]
[311059449,1704891129595,-500.0,0.00032328,2]
[311059450,1704891129605,-500.0,0.00032328,2]
[311059451,1704891129615,-500.0,0.00032328,2]
[311059452,1704891129625,-500.0,0.00032328,2]
[311059453,1704891129635,-1127.84,0.00032328,2]
[311059454,1704891129645,-1154.12,0.00032328,2]
[311059455,1704891129656,-1044.13,0.00032328,2]
[311059456,1704891129665,-551.43,0.00032328,2]
[311059457,1704891129675,-1354.13,0.00032328,2]
[311059458,1704891129684,-500.0,0.00032328,2]
[311059459,1704891129695,-638.51,0.00032328,2]
[311059460,1704891129704,-862.28,0.00032328,2]
[311059461,1704891129714,-1181.63,0.00032328,2]
[311059462,1704891129724,-757.94,0.00032328,2]
[311059463,1704891129734,-1015.59,0.00032328,2]
[311059464,1704891129743,-848.07,0.00032328,2]
[311059465,1704891129753,-823.4,0.00032328,2]
[311059466,1704891129763,-783.14,0.00032328,2]
[311059467,1704891129773,-500.0,0.00032328,2]
[311059468,1704891129783,-500.0,0.00032328,2]
[311059469,1704891129792,-1634.17,0.00032328,2]
[311059470,1704891129802,-892.34,0.00032328,2]
[311059471,1704891129812,-500.0,0.00032328,2]
[311059472,1704891129822,-500.0,0.00032328,2]
[311059473,1704891129832,-500.0,0.00032328,2]
[311059474,1704891129842,-1731.94,0.00032328,2]
[311059475,1704891129852,-1097.53,0.00032328,2]
[311059476,1704891129862,-1300.74,0.00032328,2]
[311059477,1704891129872,-1118.35,0.00032328,2]
[311059478,1704891129881,-821.71,0.00032328,2]
[311059479,1704891129891,-1115.5,0.00032328,2]
[311059480,1704891129900,-799.47,0.00032328,2]
[311059481,1704891129911,-500.0,0.00032328,2]
[311059482,1704891129921,-500.0,0.00032328,2]
[311059483,1704891129930,-500.0,0.00032328,2]
[311059484,1704891129939,-1438.57,0.00032328,2]
[311059485,1704891129948,-1466.84,0.00032328,2]
[311059486,1704891129957,-652.51,0.00032328,2]
[311059487,1704891129967,-500.0,0.00032328,2]
[311059488,1704891129977,-1106.08,0.00032328,2]
[311059489,1704891129987,-1804.0,0.00032328,2]
[311059490,1704891129996,-1166.35,0.00032328,2]
[311059491,1704891130006,-500.0,0.00032328,2]
[311059492,1704891130015,-1196.42,0.00032328,2]
[311059493,1704891130025,-1134.06,0.00032328,2]
[311059494,1704891130034,-545.73,0.00032328,2]
[311059495,1704891130043,-848.12,0.00032328,2]
[311059496,1704891130053,-500.0,0.00032328,2]
[311059497,1704891130063,-1566.38,0.00032328,2]
[311059498,1704891130073,-500.0,0.00032328,2]
[311059499,1704891130083,-714.75,0.00032328,2]
[311059500,1704891130093,-907.54,0.00032328,2]
[311059501,1704891130103,-556.57,0.00032328,2]
[311059502,1704891130113,-924.42,0.00032328,2]
[311059503,1704891130123,-500.0,0.00032328,2]
[311059504,1704891130133,-2743.08,0.00032328,2]
[311059505,1704891130142,-500.0,0.00032328,2]
[311059506,1704891130153,-500.0,0.00032328,2]
[311059507,1704891130163,-500.0,0.00032328,2]
[311059508,1704891130172,-1841.24,0.00032328,2]
[311059509,1704891130408,-1407.91,0.00032328,2]
[311059510,1704891130418,-627.59,0.00032328,2]
[311059511,1704891130427,-1648.35,0.00032328,2]
[311059512,1704891130437,-546.87,0.00032328,2]
[311059513,1704891130446,-574.07,0.00032328,2]
[311059514,1704891130455,-1615.48,0.00032328,2]
[311059515,1704891130465,-555.68,0.00032328,2]
[311059516,1704891130474,-997.75,0.00032328,2]
[311059517,1704891130484,-1687.92,0.00032328,2]
[311059518,1704891130494,-783.23,0.00032328,2]
[311059519,1704891130503,-1436.16,0.00032328,2]
[311059520,1704891130513,-500.0,0.00032328,2]
[311059521,1704891130522,-608.29,0.00032328,2]
[311059522,1704891130531,-893.83,0.00032328,2]
[311059523,1704891130541,-1132.03,0.00032328,2]
[311059524,1704891130551,-1380.57,0.00032328,2]
[311059525,1704891130561,-933.87,0.00032328,2]
[311059526,1704891130572,-500.0,0.00032328,2]
[311059527,1704891130581,-500.0,0.00032328,2]
[311059528,1704891130591,-957.42,0.00032328,2]
[311059529,1704891130602,-995.9,0.00032328,2]
[311059530,1704891130611,-500.0,0.00032328,2]
[311059531,1704891130621,-1856.22,0.00032328,2]
[311059532,1704891130631,-895.94,0.00032328,2]
[311059533,1704891130640,-1480.74,0.00032328,2]
[311059534,1704891130650,-500.0,0.00032328,2]
[311059535,1704891130662,-500.0,0.00032328,2]
[311059536,1704891130671,-776.38,0.00032328,2]
[311059537,1704891130681,-1298.12,0.00032328,2]
[311059538,1704891130691,-333.27,0.00032328,2]
[311059539,1704891130700,-1188.98,0.00032328,2]
[311059540,1704891130711,-791.87,0.00032328,2]
[311059541,1704891130723,-500.0,0.00032328,2]
[311059542,1704891130732,-577.69,0.00032328,2]
[311059543,1704891130743,-700.71,0.00032328,2]
[311059544,1704891130752,-682.9,0.00032328,2]
[311059545,1704891130761,-1037.2,0.00032328,2]
[311059546,1704891130771,-271.35510243,0.00032328,2]
[311059547,1704891130780,-923.76,0.00032328,2]
[311059548,1704891130790,-1290.28,0.00032328,2]
[311059549,1704891130799,-694.02,0.00032328,2]
[311059550,1704891130808,-500.0,0.00032328,2]
[311059551,1704891130818,-672.12,0.00032328,2]
[311059552,1704891130828,-751.24,0.00032328,2]
[311059553,1704891130838,-791.74,0.00032328,2]
[311059554,1704891130847,-2135.41,0.00032328,2]
[311059555,1704891130857,-630.74,0.00032328,2]
[311059556,1704891130866,-500.0,0.00032328,2]
[311059557,1704891130877,-500.0,0.00032328,2]
[311059558,1704891130886,-1065.89,0.00032328,2]
[311059559,1704891130895,-500.0,0.00032328,2]
[311059560,1704891130906,-1611.31,0.00032328,2]
[311059561,1704891130915,-537.76,0.00032328,2]
[311059562,1704891130925,-529.94387919,0.00032328,2]
[311059563,1704891130934,-500.0,0.00032328,2]
[311059564,1704891130944,-500.0,0.00032328,2]
[311059565,1704891130954,-500.0,0.00032328,2]
[311059566,1704891130963,-1096.88,0.00032328,2]
[311059567,1704891130973,-500.0,0.00032328,2]
[311059568,1704891130986,-1235.12,0.00032328,2]
[311059569,1704891130998,-500.0,0.00032328,2]
[311059570,1704891131008,-508.12,0.00032328,2]
[311059571,1704891131018,-1332.96,0.00032328,2]
[311059572,1704891131028,-1351.54,0.00032328,2]
[311059573,1704891131038,-278.80293664,0.00032328,2]
[311059574,1704891131048,-500.0,0.00032328,2]
[311059575,1704891131058,-500.0,0.00032328,2]
[311059576,1704891131067,-525.51,0.00032328,2]
[311059577,1704891131077,-500.0,0.00032328,2]
[311059578,1704891131087,-500.0,0.00032328,2]
[311059579,1704891131096,-500.0,0.00032328,2]
[311059580,1704891131106,-551.86,0.00032328,2]
[311059581,1704891131116,-2153.22,0.00032328,2]
[311059582,1704891131125,-894.32,0.00032328,2]
[311059583,1704891131135,-1551.48,0.00032328,2]
[311059584,1704891131145,-1823.35,0.00032328,2]
[311059585,1704891131156,-656.22,0.00032328,2]
[311059586,1704891131166,-500.0,0.00032328,2]
[311059587,1704891131175,-500.0,0.00032328,2]
[311059588,1704891131185,-903.93,0.00032328,2]
[311059589,1704891131196,-784.54,0.00032328,2]
[311059590,1704891131205,-500.0,0.00032328,2]
[311059591,1704891131215,-1466.91,0.00032328,2]
[311059592,1704891131225,-1006.56,0.00032328,2]
[311059593,1704891131236,-1655.17,0.00032328,2]
[311059594,1704891131246,-3133.81,0.00032328,2]
[311059595,1704891131255,-761.32,0.00032328,2]
[311059596,1704891131265,-500.0,0.00032328,2]
[311059597,1704891131275,-500.0,0.00032328,2]
[311059598,1704891131285,-500.0,0.00032328,2]
[311059599,1704891131295,-1170.77,0.00032328,2]
[311059600,1704891131305,-533.08,0.00032328,2]
[311059601,1704891131315,-500.0,0.00032328,2]
[311059602,1704891131325,-500.0,0.00032328,2]
[311059603,1704891131339,-1368.59,0.00032328,2]
[311059604,1704891131350,-661.49,0.00032328,2]
[311059605,1704891131360,-1618.49,0.00032328,2]
[311059606,1704891131370,-696.22,0.00032328,2]
[311059607,1704891131380,-8919.11,0.00032328,2]
[311059608,1704891131389,-500.0,0.00032328,2]
[311059609,1704891131399,-1000.0,0.00032328,2]
[311059610,1704891131409,-813.18,0.00032328,2]
[311059611,1704891131419,-500.0,0.00032328,2]
[311059612,1704891131428,-484.51,0.00032328,2]
[311059613,1704891131438,-916.52,0.00032328,2]
[311059614,1704891131448,-500.0,0.00032328,2]
[311059615,1704891131458,-169.43769723,0.00032328,2]
[311059616,1704891131468,-500.0,0.00032328,2]
[311059617,1704891131478,-1010.96,0.00032328,2]
[311059618,1704891131487,-500.0,0.00032328,2]
[311059619,1704891131497,-669.44,0.00032328,2]
[311059620,1704891131508,-1654.81,0.00032328,2]
[311059621,1704891131517,-895.64,0.00032328,2]
[311059622,1704891131527,-5719.09,0.00032328,2]
[311059623,1704891131537,-500.0,0.00032328,2]
[311059624,1704891131546,-500.0,0.00032328,2]
[311059625,1704891131556,-3241.68,0.00032328,2]
[311059626,1704891131565,-2147.06,0.00032328,2]
[311059627,1704891131575,-500.0,0.00032328,2]
[311059628,1704891131584,-500.0,0.00032328,2]
[311059629,1704891131594,-4583.07,0.00032328,2]
[311059630,1704891131604,-4104.47,0.00032328,2]
[311059631,1704891131613,-500.0,0.00032328,2]
[311059632,1704891131623,-1135.8,0.00032328,2]
[311059633,1704891131633,-4864.49,0.00032328,2]
[311059634,1704891131642,-1172.6,0.00032328,2]
[311059635,1704891131652,-1306.53,0.00032328,2]
[311059636,1704891131663,-500.0,0.00032328,2]
[311059637,1704891131673,-605.42,0.00032328,2]
[311059638,1704891131682,-500.0,0.00032328,2]
[311059639,1704891131692,-613.66,0.00032328,2]
[311059640,1704891131702,-3152.91,0.00032328,2]
[311059641,1704891131712,-1839.88,0.00032328,2]
[311059642,1704891131722,-500.0,0.00032328,2]
[311059643,1704891131731,-848.46,0.00032328,2]
[311059644,1704891131741,-1217.95,0.00032328,2]
[311059645,1704891131750,-3087.19,0.00032328,2]
[311059646,1704891131761,-1107.32,0.00032328,2]
[311059647,1704891131771,-1973.9,0.00032328,2]
[311059648,1704891131780,-1243.05,0.00032328,2]
[311059649,1704891131791,-500.0,0.00032328,2]
[311059650,1704891131802,-500.0,0.00032328,2]
[311059651,1704891131811,-998.38,0.00032328,2]
[311059652,1704891131820,-1702.03,0.00032328,2]
[311059653,1704891131830,-500.0,0.00032328,2]
[311059654,1704891131840,-515.72,0.00032328,2]
[311059655,1704891131865,-500.0,0.00032328,2]
[311059656,1704891131884,-3061.74,0.00032328,2]
[311059657,1704891131905,-410.69835799,0.00032328,2]
[311059658,1704891131927,-500.0,0.00032328,2]
[311059659,1704891131943,-3064.76,0.00032328,2]
[311059660,1704891131962,-996.01,0.00032328,2]
[311059661,1704891131982,-1068.18,0.00032328,2]
[311059662,1704891132001,-1153.97,0.00032328,2]
[311059663,1704891132019,-6469.31,0.00032328,2]
[311059664,1704891132037,-1516.45,0.00032328,2]
[311059665,1704891132061,-500.0,0.00032328,2]
[311059666,1704891132080,-20572.41,0.00032328,2]
[311059667,1704891132094,-835.36,0.00032328,2]
[311059668,1704891132112,-508.77,0.00032328,2]
[311059669,1704891132129,-876.85,0.00032328,2]
[311059670,1704891132148,-1211.96,0.00032328,2]
[311059671,1704891132165,-8935.6,0.00032328,2]
[311059672,1704891132182,-500.0,0.00032328,2]
[311059673,1704891132198,-749.11,0.00032328,2]
[311059674,1704891132215,-500.0,0.00032328,2]
[311059675,1704891132231,-500.0,0.00032328,2]
[311059676,1704891132249,-3428.01,0.00032328,2]
[311059677,1704891132266,-500.0,0.00032328,2]
[311059678,1704891132283,-1411.74,0.00032328,2]
[311059679,1704891132299,-51777.21,0.00032328,2]
[311059680,1704891132316,-500.0,0.00032328,2]
[311059681,1704891132334,-2414.62,0.00032328,2]
[311059682,1704891132350,-28702.52,0.00032328,2]
[311059683,1704891132366,-1449.33,0.00032328,2]
[311059684,1704891132382,-500.0,0.00032328,2]
[311059685,1704891132400,-729.81,0.00032328,2]
[311059686,1704891132416,-1741.33,0.00032328,2]
[311059687,1704891132433,-500.0,0.00032328,2]
[311059688,1704891132450,-500.0,0.00032328,2]
[311059689,1704891132467,-18242.51,0.00032328,2]
[311059690,1704891132483,-982.47,0.00032328,2]
[311059691,1704891132499,-3044.12,0.00032328,2]
[311059692,1704891132517,-1198.42,0.00032328,2]
[311059693,1704891132533,-7322.32,0.00032328,2]
[311059694,1704891132550,-883.98,0.00032328,2]
[311059695,1704891132566,-669.65,0.00032328,2]
[311059696,1704891132583,-936.43,0.00032328,2]
[311059697,1704891132600,-500.0,0.00032328,2]
[311059698,1704891132617,-1931.34,0.00032328,2]
[311059699,1704891132633,-596.34,0.00032328,2]
[311059700,1704891132651,-5311.52,0.00032328,2]
[311059701,1704891132669,-591.04,0.00032328,2]
[311059702,1704891132690,-756.46,0.00032328,2]
[311059703,1704891132707,-1716.44,0.00032328,2]
[311059704,1704891132724,-500.0,0.00032328,2]
[311059705,1704891132742,-1935.34,0.00032328,2]
[311059706,1704891132759,-1335.68,0.00032328,2]
[311059707,1704891132775,-896.69,0.00032328,2]
[311059708,1704891132792,-630.3,0.00032328,2]
[311059709,1704891132810,-11436.48,0.00032328,2]
[311059710,1704891132826,-5273.56,0.00032328,2]
[311059711,1704891132843,-7205.25,0.00032328,2]
[311059712,1704891132859,-738.84,0.00032328,2]
[311059713,1704891132876,-500.0,0.00032328,2]
[311059714,1704891132892,-962.89,0.00032328,2]
[311059715,1704891132910,-1192.7,0.00032328,2]
[311059716,1704891132926,-717.02,0.00032328,2]
[311059717,1704891132942,-1285.43,0.00032328,2]
[311059718,1704891132958,-6876.74,0.00032328,2]
[311059719,1704891132974,-1732.97,0.00032328,2]
[311059720,1704891132990,-7057.36,0.00032328,2]
[311059721,1704891133006,-500.0,0.00032328,2]
[311059722,1704891133022,-2245.33,0.00032328,2]
[311059723,1704891133037,-1567.49,0.00032328,2]
[311059724,1704891133053,-790.0,0.00032328,2]
[311059725,1704891133068,-932.57,0.00032328,2]
[311059726,1704891133084,-2499.19,0.00032328,2]
[311059727,1704891133100,-1333.7,0.00032328,2]
[311059728,1704891133116,-6606.78,0.00032328,2]
[311059729,1704891133131,-2921.42,0.00032328,2]
[311059730,1704891133147,-4128.32,0.00032328,2]
[311059731,1704891133164,-500.0,0.00032328,2]
[311059732,1704891133179,-783.63,0.00032328,2]
[311059733,1704891133196,-682.44,0.00032328,2]
[311059734,1704891133211,-1293.22,0.00032328,2]
[311059735,1704891133227,-3328.34,0.00032328,2]
[311059736,1704891133243,-1047.14,0.00032328,2]
[311059737,1704891133258,-953.47,0.00032328,2]
[311059738,1704891133273,-2896.37,0.00032328,2]
[311059739,1704891133289,-668.72,0.00032328,2]
[311059740,1704891133305,-3025.67,0.00032328,2]
[311059741,1704891133321,-1350.56,0.00032328,2]
[311059742,1704891133339,-500.0,0.00032328,2]
[311059743,1704891133356,-2153.92,0.00032328,2]
[311059744,1704891133373,-2341.12,0.00032328,2]
[311059745,1704891133388,-2098.62,0.00032328,2]
[311059746,1704891133404,-703.2,0.00032328,2]
[311059747,1704891133422,-1930.74,0.00032328,2]
[311059748,1704891133439,-500.0,0.00032328,2]
[311059749,1704891133455,-500.0,0.00032328,2]
[311059750,1704891133471,-500.0,0.00032328,2]
[311059751,1704891133487,-5339.67,0.00032328,2]
[311059752,1704891133504,-503.67,0.00032328,2]
[311059753,1704891133519,-4486.53,0.00032328,2]
[311059754,1704891133537,-1093.38,0.00032328,2]
[311059755,1704891133553,-3990.83,0.00032328,2]
[311059756,1704891133569,-843.02,0.00032328,2]
[311059757,1704891133585,-3222.77,0.00032328,2]
[311059758,1704891133600,-915.67,0.00032328,2]
[311059759,1704891133617,-500.0,0.00032328,2]
[311059760,1704891133634,-6104.89,0.00032328,2]
[311059761,1704891133659,-500.0,0.00032328,2]
[311059762,1704891133678,-723.37,0.00032328,2]
[311059763,1704891133694,-500.0,0.00032328,2]
[311059764,1704891133713,-500.0,0.00032328,2]
[311059765,1704891133731,-1149.9,0.00032328,2]
[311059766,1704891133748,-500.0,0.00032328,2]
[311059767,1704891133765,-5798.03,0.00032328,2]
[311059768,1704891133782,-4625.49,0.00032328,2]
[311059769,1704891133798,-550.5,0.00032328,2]
[311059770,1704891133815,-13391.47,0.00032328,2]
[311059771,1704891133830,-1882.58,0.00032328,2]
[311059772,1704891133848,-1438.47,0.00032328,2]
[311059773,1704891133863,-394.26213917,0.00032328,2]
[311059774,1704891133880,-3391.89,0.00032328,2]
[311059775,1704891133896,-17056.02,0.00032328,2]
[311059776,1704891133914,-1223.46,0.00032328,2]
[311059777,1704891133930,-1903.64,0.00032328,2]
[311059778,1704891133945,-535.17,0.00032328,2]
[311059779,1704891133964,-500.0,0.00032328,2]
[311059780,1704891133980,-1447.74,0.00032328,2]
[311059781,1704891133996,-903.74,0.00032328,2]
[311059782,1704891134012,-500.0,0.00032328,2]
[311059783,1704891134029,-1181.32,0.00032328,2]
[311059784,1704891134046,-897.9,0.00032328,2]
[311059785,1704891134062,-500.0,0.00032328,2]
[311059786,1704891134078,-3416.68,0.00032328,2]
[311059787,1704891134095,-500.0,0.00032328,2]
[311059788,1704891134111,-1323.99,0.00032328,2]